fUST/lending_fUST_20250815
["ID","MTS","AMOUNT","RATE_DAILY","PERIOD"]
[379224163,1755197440885,-460.0,0.00016609,2]
[379224164,1755197440894,-460.0,0.00016609,2]
[379224165,1755197440903,-608.62467816,0.00016609,2]
[379224166,1755197440913,-460.0,0.00016609,2]
[379224167,1755197440922,-500.0,0.00016609,2]
[379224168,1755197440931,-460.0,0.00016609,2]
[379224169,1755197440941,-460.0,0.00016609,2]
[379224170,1755197440950,-460.0,0.00016609,2]
[379224171,1755197440960,-460.0,0.00016609,2]
[379224172,1755197440969,-460.0,0.00016609,2]
[379224173,1755197440979,-460.0,0.00016609,2]
[379224174,1755197440989,-460.0,0.00016609,2]
[379224175,1755197440999,-460.69610991,0.00016609,2]
[379224176,1755197441009,-460.0,0.00016609,2]
[379224177,1755197441019,-460.0,0.00016609,2]
[379224178,1755197441030,-460.0,0.00016609,2]
[379224179,1755197441040,-460.0,0.00016609,2]
[379224180,1755197441049,-460.0,0.00016609,2]
[379224181,1755197441059,-460.0,0.00016609,2]
[379224182,1755197441068,-500.0,0.00016673,2]
[379224183,1755197441077,-251.0979196,0.00016673,2]
[379224184,1755197441088,-500.0,0.00016673,2]
[379224185,1755197441098,-500.0,0.00016673,2]
[379224186,1755197441107,-500.0,0.00016673,2]
[379224187,1755197441118,-500.0,0.00016673,2]
[379224188,1755197441128,-500.0,0.00016673,2]
[379224189,1755197441137,-500.0,0.00016673,2]
[379224190,1755197441147,-543.59259108,0.00016673,2]
[379224191,1755197441157,-500.0,0.00016673,2]
[379224192,1755197441167,-500.0,0.00016673,2]
[379224193,1755197441177,-500.0,0.00016673,2]
[379224194,1755197441187,-500.0,0.00016673,2]
[379224195,1755197441197,-500.0,0.00016673,2]
[379224196,1755197441207,-500.0,0.00016673,2]
[379224197,1755197441216,-551.29892843,0.00016673,2]
[379224198,1755197441226,-500.0,0.00016673,2]
[379224199,1755197441235,-500.0,0.00016673,2]
[379224200,1755197441244,-500.0,0.00016673,2]
[379224201,1755197441254,-500.0,0.00016673,2]
[379224202,1755197441405,-500.0,0.00016673,2]
[379224203,1755197441436,-484.81535733,0.00016673,2]
[379224204,1755197441446,-500.0,0.00016673,2]
[379224205,1755197441456,-500.0,0.00016673,2]
[379224206,1755197441467,-500.0,0.00016673,2]
[379224207,1755197441477,-151.0,0.00016673,2]
[379224208,1755197441487,-164.933933,0.00016673,2]
[379224209,1755197441497,-164.933933,0.00016673,2]
[379224210,1755197441506,-151.0,0.00016702,2]
[379224211,1755197441515,-151.0,0.00016703,2]
[379224213,1755197441526,-151.0,0.00016703,2]
[379224214,1755197441535,-151.0,0.00016703,2]
[379224216,1755197441544,-151.0,0.00016703,2]
[379224217,1755197441554,-151.0,0.00016706,2]
[379224219,1755197441563,-151.0,0.00016706,2]
[379224221,1755197441574,-151.0,0.00016706,2]
[379224222,1755197441588,-151.0,0.00016706,2]
[379224223,1755197441598,-152.92996,0.00016706,2]
[379224224,1755197441607,-151.0,0.00016706,2]
[379224225,1755197441617,-151.0,0.00016706,2]
[379224226,1755197441626,-151.0,0.00016706,2]
[379224227,1755197441636,-151.0,0.00016706,2]
[379224228,1755197441645,-151.0,0.00016706,2]
[379224229,1755197441654,-154.54553138,0.00016706,2]
[379224230,1755197441666,-151.0,0.00016706,2]
[379224231,1755197441676,-151.0,0.00016706,2]
[379224232,1755197441685,-151.0,0.00016706,2]
[379224233,1755197441694,-151.0,0.00016706,2]
[379224235,1755197441704,-151.0,0.00016706,2]
[379224237,1755197441713,-151.0,0.00016706,2]
[379224238,1755197441723,-245.0,0.00016706,2]
[379224240,1755197441732,-1378.0,0.00016706,2]
[379224242,1755197441742,-277.08633534,0.00016706,2]
[379224244,1755197441751,-151.0,0.00016706,2]
[379224246,1755197441760,-292.0,0.00016706,2]
[379224248,1755197441769,-173.77747692,0.00016706,2]
[379224250,1755197441779,-151.0,0.00016706,2]
[379224252,1755197441788,-205.99700286,0.00016706,2]
[379224254,1755197441798,-500.0,0.00016706,2]
[379224256,1755197441807,-151.0,0.00016708,2]
[379224259,1755197441818,-151.0,0.00016709,2]
[379224261,1755197441828,-151.0,0.00016709,2]
[379224263,1755197441837,-151.0,0.00016709,2]
[379224265,1755197441846,-192.659724,0.00016709,2]
[379224267,1755197441856,-192.659724,0.00016709,2]
[379224269,1755197441865,-192.659724,0.00016709,2]
[379224271,1755197441874,-151.0,0.0001671,2]
[379224273,1755197441883,-151.0,0.0001671,2]
[379224275,1755197441892,-151.0,0.0001671,2]
[379224277,1755197441901,-151.0,0.0001671,2]
[379224279,1755197441910,-151.0,0.0001671,2]
[379224281,1755197441919,-151.000001,0.0001671,2]
[379224283,1755197441929,-192.659724,0.0001671,2]
[379224285,1755197441938,-24040.59112898,0.0001677,2]
[379224287,1755197441948,-542.25008236,0.00016772,2]
[379224289,1755197441957,-268.76431501,0.00016772,2]
[379224291,1755197441967,-460.0,0.00016772,2]
[379224292,1755197441977,-460.0,0.00016772,2]
[379224294,1755197441987,-460.0,0.00016772,2]
[379224296,1755197441996,-460.0,0.00016772,2]
[379224299,1755197442006,-460.0,0.00016772,2]
[379224301,1755197442016,-460.0,0.00016772,2]
[379224303,1755197442026,-460.0,0.00016772,2]
[379224305,1755197442035,-460.0,0.00016772,2]
[379224307,1755197442044,-932.62,0.00016772,2]
[379224309,1755197442053,-758.98,0.00016772,2]
[379224311,1755197442062,-460.0,0.0001678,2]
[379224313,1755197442071,-789.03,0.0001678,2]
[379224315,1755197442080,-1278.43,0.0001678,2]
[379224317,1755197442089,-460.0,0.0001678,2]
[379224319,1755197442099,-1049.16,0.0001678,2]
[379224321,1755197442108,-526.84,0.0001678,2]
[379224323,1755197442117,-460.0,0.0001678,2]
[379224325,1755197442127,-460.0,0.0001678,2]
[379224327,1755197442136,-1125.17,0.0001678,2]
[379224329,1755197442145,-467.52,0.0001678,2]
[379224331,1755197442154,-617.46,0.0001678,2]
[379224333,1755197442163,-460.0,0.0001678,2]
[379224335,1755197442173,-460.0,0.0001678,2]
[379224337,1755197442182,-1084.56,0.0001678,2]
[379224339,1755197442191,-460.0,0.00016781,2]
[379224341,1755197442201,-164.933933,0.00016781,2]
[379224343,1755197442210,-164.933933,0.00016781,2]
[379224345,1755197442220,-1448.41,0.00016781,2]
[379224347,1755197442229,-675.65,0.00016781,2]
[379224349,1755197442241,-460.0,0.00016781,2]
[379224351,1755197442250,-2962.85,0.00016781,2]
[379224353,1755197442259,-822.62,0.00016781,2]
[379224355,1755197442268,-604.57816801,0.00016781,2]
[379224357,1755197442278,-460.0,0.00016781,2]
[379224359,1755197442287,-460.0,0.00016781,2]
[379224361,1755197442297,-531.82,0.00016781,2]
[379224363,1755197442306,-1528.78,0.00016781,2]
[379224365,1755197442315,-460.0,0.00016781,2]
[379224367,1755197442324,-460.0,0.00016781,2]
[379224369,1755197442333,-460.0,0.00016781,2]
[379224371,1755197442343,-151.0,0.00016782,2]
[379224373,1755197442352,-396.823926,0.00016782,2]
[379224375,1755197442361,-396.823926,0.00016782,2]
[379224377,1755197442371,-151.0,0.00016782,2]
[379224379,1755197442380,-151.0,0.00016782,2]
[379224381,1755197442390,-460.0,0.00016782,2]
[379224383,1755197442400,-151.0,0.00016782,2]
[379224385,1755197442409,-317.29,0.00016782,2]
[379224387,1755197442418,-460.0,0.00016782,2]
[379224389,1755197442427,-200.0,0.00016827,2]
[379224391,1755197442436,-200.0,0.00016827,2]
[379224393,1755197442445,-200.0,0.00016827,2]
[379224395,1755197442454,-200.0,0.00016827,2]
[379224397,1755197442464,-200.0,0.00016827,2]
[379224399,1755197442473,-200.0,0.00016827,2]
[379224401,1755197442482,-151.0,0.00016841,2]
[379224403,1755197442492,-160.0,0.00016844,2]
[379224405,1755197442500,-160.0,0.00016844,2]
[379224408,1755197442510,-232.05637125,0.00016844,2]
[379224409,1755197442519,-528.19044044,0.00016844,2]
[379224411,1755197442529,-160.0,0.00016844,2]
[379224414,1755197442541,-417.15472785,0.00016844,2]
[379224416,1755197442550,-160.0,0.00016844,2]
[379224418,1755197442559,-160.0,0.00016844,2]
[379224419,1755197442568,-843.37884167,0.00016844,2]
[379224422,1755197442578,-160.0,0.00016844,2]
[379224424,1755197442590,-160.0,0.00016844,2]
[379224426,1755197442601,-215.59581046,0.00016844,2]
[379224428,1755197442610,-461.9529908,0.00016844,2]
[379224430,1755197442620,-1519.04571002,0.00016855,2]
[379224432,1755197442630,-192.659724,0.0001687,2]
[379224434,1755197442639,-151.0,0.0001687,2]
[379224436,1755197442648,-151.0,0.0001688,2]
[379224438,1755197442657,-192.659724,0.0001688,2]
[379224440,1755197442668,-151.0,0.0001688,2]
[379224441,1755197442678,-151.0,0.0001688,2]
[379224443,1755197442688,-151.0,0.0001688,2]
[379224445,1755197442697,-151.0,0.0001688,2]
[379224447,1755197442706,-151.0,0.00016883,2]
[379224449,1755197442715,-151.0,0.00016883,2]
[379224451,1755197442724,-337.61707479,0.00016883,2]
[379224453,1755197442733,-151.0,0.000169,2]
[379224455,1755197442743,-431.6946653,0.000169,2]
[379224457,1755197442752,-767.534169,0.000169,2]
[379224459,1755197442762,-293.6437586,0.000169,2]
[379224461,1755197442771,-293.6437586,0.000169,2]
[379224463,1755197442782,-293.6437586,0.000169,2]
[379224465,1755197442791,-293.6437586,0.000169,2]
[379224467,1755197442800,-293.6437586,0.000169,2]
[379224469,1755197442809,-439.0406296,0.000169,2]
[379224471,1755197442818,-293.6437586,0.000169,2]
[379224473,1755197442828,-293.6437586,0.000169,2]
[379224475,1755197442837,-431.6946653,0.000169,2]
[379224477,1755197442847,-293.6437586,0.000169,2]
[379224479,1755197442856,-234.935987,0.000169,2]
[379224481,1755197442866,-431.6946653,0.000169,2]
[379224483,1755197442875,-431.6946653,0.000169,2]
[379224485,1755197442884,-192.659724,0.00016932,2]
[379224487,1755197442894,-255.0,0.00016933,2]
[379224489,1755197442904,-255.0,0.00016939,2]
[379224491,1755197442913,-151.0,0.00016967,2]
[379224493,1755197442922,-168.0,0.00016974,2]
[379224495,1755197442932,-151.0,0.00016976,2]
[379224497,1755197442941,-151.0,0.00016976,2]
[379224499,1755197442951,-151.0,0.00016976,2]
[379224501,1755197442959,-151.0,0.00016976,2]
[379224503,1755197442968,-151.0,0.00016976,2]
[379224505,1755197442977,-151.0,0.00016977,2]
[379224507,1755197442989,-151.0,0.00016977,2]
[379224509,1755197443001,-151.0,0.00016977,2]
[379224512,1755197443015,-198.0,0.0001698,2]
[379224514,1755197443027,-245.0,0.0001698,2]
[379224516,1755197443039,-151.0,0.0001698,2]
[379224518,1755197443052,-1378.0,0.0001698,2]
[379224520,1755197443063,-151.0,0.0001698,2]
[379224524,1755197443074,-151.0,0.0001698,2]
[379224526,1755197443085,-500.0,0.0001698,2]
[379224528,1755197443097,-164.933933,0.0001698,2]
[379224530,1755197443109,-164.933933,0.0001698,2]
[379224532,1755197443120,-151.0,0.00016981,2]
[379224534,1755197443132,-192.659724,0.00016981,2]
[379224538,1755197443145,-151.0,0.00016982,2]
[379224540,1755197443156,-151.0,0.00016982,2]
[379224542,1755197443167,-151.0,0.00016982,2]
[379224544,1755197443178,-151.0,0.00016983,2]
[379224546,1755197443190,-151.0,0.00016983,2]
[379224548,1755197443202,-293.6437586,0.00017,2]
[379224551,1755197443213,-151.0,0.00017,2]
[379224553,1755197443226,-396.823926,0.00017046,2]
[379224555,1755197443237,-396.823926,0.00017046,2]
[379224557,1755197443248,-151.0,0.00017046,2]
[379224559,1755197443259,-460.0,0.00017046,2]
[379224562,1755197443270,-460.0,0.00017046,2]
[379224564,1755197443281,-460.0,0.00017046,2]
[379224566,1755197443291,-460.0,0.00017046,2]
[379224568,1755197443302,-151.0,0.00017046,2]
[379224570,1755197443313,-460.0,0.00017046,2]
[379224572,1755197443324,-460.0,0.00017046,2]
[379224575,1755197443336,-460.0,0.00017046,2]
[379224577,1755197443347,-460.0,0.00017046,2]
[379224579,1755197443359,-932.62,0.00017046,2]
[379224581,1755197443371,-758.98,0.00017046,2]
[379224583,1755197443381,-460.0,0.00017054,2]
[379224585,1755197443392,-789.03,0.00017054,2]
[379224587,1755197443405,-1278.43,0.00017054,2]
[379224589,1755197443417,-460.0,0.00017054,2]
[379224592,1755197443429,-1049.16,0.00017054,2]
[379224594,1755197443441,-526.84,0.00017054,2]
[379224596,1755197443454,-460.0,0.00017054,2]
[379224598,1755197443466,-460.0,0.00017054,2]
[379224600,1755197443480,-1125.17,0.00017054,2]
[379224603,1755197443493,-467.52,0.00017054,2]
[379224605,1755197443505,-617.46,0.00017054,2]
[379224607,1755197443517,-386.70806712,0.00017054,2]
[379224609,1755197443532,-460.0,0.00017054,2]
[379224611,1755197443543,-1084.56,0.00017054,2]
[379224613,1755197443556,-302.25070758,0.00017055,2]
[379224615,1755197443567,-1448.41,0.00017055,2]
[379224617,1755197443578,-675.65,0.00017055,2]
[379224619,1755197443592,-460.0,0.00017055,2]
[379224621,1755197443602,-2962.85,0.00017055,2]
[379224623,1755197443612,-822.62,0.00017055,2]
[379224625,1755197443623,-460.0,0.00017055,2]
[379224627,1755197443634,-460.0,0.00017055,2]
[379224629,1755197443646,-531.82,0.00017055,2]
[379224631,1755197443659,-1528.78,0.00017055,2]
[379224633,1755197443672,-460.0,0.00017055,2]
[379224636,1755197443685,-460.0,0.00017055,2]
[379224638,1755197443695,-460.0,0.00017055,2]
[379224640,1755197443706,-460.0,0.00017056,2]
[379224643,1755197443717,-537.67,0.00017056,2]
[379224645,1755197443728,-255.0,0.00017078,2]
[379224647,1755197443739,-156.76915008,0.000171,2]
[379224649,1755197443750,-151.0,0.000171,2]
[379224651,1755197443761,-164.933933,0.00017101,2]
[379224653,1755197443772,-164.933933,0.00017101,2]
[379224655,1755197443789,-973.961,0.00017101,2]
[379224657,1755197443799,-636.0,0.00017101,2]
[379224659,1755197443809,-2151.0,0.00017101,2]
[379224662,1755197443826,-547.1,0.00017134,2]
[379224664,1755197443836,-257.833712,0.00017147,2]
[379224666,1755197443846,-151.0,0.00017148,2]
[379224668,1755197443857,-151.0,0.00017154,2]
[379224670,1755197443867,-277.867342,0.00017157,2]
[379224672,1755197443878,-151.0,0.00017157,2]
[379224674,1755197443888,-151.0,0.00017157,2]
[379224676,1755197443898,-151.0,0.00017157,2]
[379224678,1755197443908,-168.0,0.00017158,2]
[379224680,1755197443918,-151.0,0.00017158,2]
[379224682,1755197443929,-151.453336,0.00017158,2]
[379224684,1755197443939,-217.77127,0.00017158,2]
[379224686,1755197443950,-151.0,0.00017158,2]
[379224688,1755197443960,-396.823926,0.00017158,2]
[379224690,1755197443970,-396.823926,0.00017158,2]
[379224692,1755197443980,-151.0,0.00017158,2]
[379224694,1755197443991,-151.0,0.00017158,2]
[379224696,1755197444001,-1519.04571002,0.00017203,2]
[379224698,1755197444012,-255.0,0.00017219,2]
[379224700,1755197444023,-500.0,0.00017221,2]
[379224702,1755197444035,-500.0,0.00017221,2]
[379224704,1755197444046,-1000.0,0.00017221,2]
[379224706,1755197444057,-1000.0,0.00017221,2]
[379224708,1755197444067,-1000.0,0.00017221,2]
[379224710,1755197444078,-1000.0,0.00017221,2]
[379224712,1755197444089,-1000.0,0.00017221,2]
[379224714,1755197444100,-1000.0,0.00017221,2]
[379224716,1755197444111,-1000.0,0.00017221,2]
[379224718,1755197444123,-1020.92936452,0.00017221,2]
[379224720,1755197444134,-809.01130451,0.00017221,2]
[379224722,1755197444145,-1000.0,0.00017221,2]
[379224724,1755197444155,-1000.0,0.00017221,2]
[379224726,1755197444166,-617.91074562,0.00017221,2]
[379224728,1755197444176,-1000.0,0.00017221,2]
[379224730,1755197444186,-151.0,0.0001725,2]
[379224732,1755197444196,-182.867662,0.00017251,2]
[379224734,1755197444207,-151.0,0.00017251,2]
[379224736,1755197444218,-151.0,0.00017252,2]
[379224738,1755197444229,-192.659724,0.00017252,2]
[379224740,1755197444240,-151.0,0.00017254,2]
[379224743,1755197444257,-1378.0,0.00017254,2]
[379224745,1755197444268,-248.11313872,0.00017254,2]
[379224746,1755197444279,-204.31455475,0.00017254,2]
[379224749,1755197444291,-292.52409432,0.00017254,2]
[379224751,1755197444301,-151.0,0.00017254,2]
[379224753,1755197444312,-151.0,0.00017254,2]
[379224755,1755197444323,-151.0,0.00017257,2]
[379224757,1755197444333,-500.0,0.0001726,2]
[379224759,1755197444343,-500.0,0.0001726,2]
[379224761,1755197444354,-500.0,0.0001726,2]
[379224763,1755197444364,-500.0,0.0001726,2]
[379224765,1755197444375,-500.0,0.0001726,2]
[379224767,1755197444388,-500.0,0.0001726,2]
[379224769,1755197444399,-282.75038961,0.0001726,2]
[379224771,1755197444409,-500.0,0.0001726,2]
[379224773,1755197444420,-500.0,0.0001726,2]
[379224775,1755197444431,-500.0,0.0001726,2]
[379224777,1755197444442,-500.0,0.0001726,2]
[379224779,1755197444453,-215.63953318,0.0001726,2]
[379224781,1755197444464,-151.0,0.0001726,2]
[379224783,1755197444474,-151.0,0.0001726,2]
[379224785,1755197444486,-192.659724,0.0001726,2]
[379224787,1755197444498,-192.659716,0.0001726,2]
[379224789,1755197444509,-151.0,0.0001726,2]
[379224791,1755197444522,-220.421,0.00017287,2]
[379224793,1755197444537,-290.27,0.00017287,2]
[379224795,1755197444548,-150.0,0.00017287,2]
[379224797,1755197444559,-150.0,0.00017287,2]
[379224799,1755197444570,-150.0,0.00017287,2]
[379224801,1755197444586,-547.1,0.00017304,2]
[379224803,1755197444597,-209.67877134,0.0001732,2]
[379224805,1755197444608,-460.0,0.0001732,2]
[379224807,1755197444619,-460.0,0.0001732,2]
[379224809,1755197444630,-165.09485382,0.0001732,2]
[379224811,1755197444641,-460.0,0.0001732,2]
[379224813,1755197444651,-460.0,0.0001732,2]
[379224815,1755197444663,-460.0,0.0001732,2]
[379224817,1755197444675,-460.0,0.0001732,2]
[379224820,1755197444686,-932.62,0.0001732,2]
[379224822,1755197444698,-758.98,0.0001732,2]
[379224824,1755197444710,-200.56360519,0.00017327,2]
[379224826,1755197444722,-151.0,0.00017328,2]
[379224828,1755197444733,-396.823926,0.00017328,2]
[379224830,1755197444745,-396.823926,0.00017328,2]
[379224832,1755197444756,-151.0,0.00017328,2]
[379224834,1755197444768,-164.933933,0.00017328,2]
[379224836,1755197444782,-164.933933,0.00017328,2]
[379224838,1755197444793,-460.0,0.00017328,2]
[379224840,1755197444803,-789.03,0.00017328,2]
[379224841,1755197444814,-1278.43,0.00017328,2]
[379224843,1755197444825,-460.0,0.00017328,2]
[379224863,1755197445023,-1049.16,0.00017328,2]
[379224865,1755197445042,-526.84,0.00017328,2]
[379224867,1755197445052,-578.54349201,0.00017328,2]
[379224869,1755197445063,-460.0,0.00017328,2]
[379224871,1755197445073,-1125.17,0.00017328,2]
[379224873,1755197445082,-467.52,0.00017328,2]
[379224875,1755197445092,-617.46,0.00017328,2]
[379224877,1755197445101,-460.0,0.00017328,2]
[379224878,1755197445111,-1084.56,0.00017328,2]
[379224880,1755197445121,-1448.41,0.00017329,2]
[379224882,1755197445131,-675.65,0.00017329,2]
[379224884,1755197445140,-326.38026205,0.00017329,2]
[379224886,1755197445150,-2962.85,0.00017329,2]
[379224888,1755197445159,-822.62,0.00017329,2]
[379224890,1755197445169,-460.0,0.00017329,2]
[379224892,1755197445179,-341.36015942,0.00017329,2]
[379224894,1755197445189,-531.82,0.00017329,2]
[379224895,1755197445199,-1528.78,0.00017329,2]
[379224897,1755197445209,-460.0,0.00017329,2]
[379224899,1755197445219,-460.0,0.00017329,2]
[379224901,1755197445228,-460.0,0.00017329,2]
[379224903,1755197445238,-460.0,0.0001733,2]
[379224905,1755197445247,-189.0,0.00017335,2]
[379224907,1755197445257,-189.0,0.00017377,2]
[379224909,1755197445266,-151.0,0.000174,2]
[379224910,1755197445276,-151.0,0.00017425,2]
[379224912,1755197445287,-151.0,0.00017425,2]
[379224914,1755197445296,-151.0,0.00017425,2]
[379224916,1755197445305,-151.0,0.00017426,2]
[379224918,1755197445314,-179.612314,0.00017426,2]
[379224920,1755197445324,-168.0,0.00017462,2]
[379224922,1755197445333,-547.1,0.00017474,2]
[379224924,1755197445343,-151.0,0.0001752,2]
[379224926,1755197445352,-1500.0,0.0001752,2]
[379224927,1755197445361,-151.0,0.00017524,2]
[379224929,1755197445371,-151.0,0.00017525,2]
[379224931,1755197445380,-198.0,0.00017528,2]
[379224933,1755197445390,-1378.0,0.00017528,2]
[379224935,1755197445399,-151.0,0.00017531,2]
[379224937,1755197445408,-151.0,0.00017533,2]
[379224939,1755197445417,-151.0,0.00017533,2]
[379224940,1755197445427,-151.0,0.00017533,2]
[379224942,1755197445436,-151.0,0.00017533,2]
[379224944,1755197445446,-507.21608396,0.00017534,2]
[379224946,1755197445455,-460.0,0.00017534,2]
[379224948,1755197445464,-1519.04571002,0.00017552,2]
[379224950,1755197445474,-151.0,0.00017594,2]
[379224952,1755197445483,-460.0,0.00017594,2]
[379224954,1755197445492,-460.0,0.00017594,2]
[379224955,1755197445501,-164.933933,0.00017594,2]
[379224957,1755197445511,-164.933933,0.00017594,2]
[379224959,1755197445520,-460.0,0.00017594,2]
[379224961,1755197445531,-460.0,0.00017594,2]
[379224963,1755197445540,-460.0,0.00017594,2]
[379224965,1755197445550,-932.62,0.00017594,2]
[379224967,1755197445559,-758.98,0.00017594,2]
[379224969,1755197445569,-151.0,0.000176,2]
[379224971,1755197445579,-460.0,0.00017602,2]
[379224973,1755197445592,-789.03,0.00017602,2]
[379224974,1755197445601,-1278.43,0.00017602,2]
[379224976,1755197445611,-460.0,0.00017602,2]
[379224978,1755197445622,-1049.16,0.00017602,2]
[379224980,1755197445633,-526.84,0.00017602,2]
[379224982,1755197445642,-460.0,0.00017602,2]
[379224984,1755197445651,-1125.17,0.00017602,2]
[379224986,1755197445666,-467.52,0.00017602,2]
[379224988,1755197445675,-617.46,0.00017602,2]
[379224990,1755197445684,-460.0,0.00017602,2]
[379224992,1755197445694,-1084.56,0.00017602,2]
[379224994,1755197445704,-1448.41,0.00017603,2]
[379224995,1755197445713,-675.65,0.00017603,2]
[379224997,1755197445722,-2962.85,0.00017603,2]
[379224999,1755197445732,-822.62,0.00017603,2]
[379225001,1755197445741,-460.0,0.00017603,2]
[379225003,1755197445751,-531.82,0.00017603,2]
[379225005,1755197445760,-1528.78,0.00017603,2]
[379225007,1755197445769,-460.0,0.00017603,2]
[379225009,1755197445779,-460.0,0.00017603,2]
[379225011,1755197445788,-460.0,0.00017603,2]
[379225013,1755197445797,-396.823926,0.00017604,2]
[379225014,1755197445807,-396.823926,0.00017604,2]
[379225016,1755197445816,-460.0,0.00017604,2]
[379225018,1755197445827,-151.0,0.00017604,2]
[379225020,1755197445837,-168.0,0.00017609,2]
[379225022,1755197445846,-189.0,0.00017632,2]
[379225024,1755197445856,-547.1,0.00017645,2]
[379225025,1755197445865,-151.0,0.000177,2]
[379225026,1755197445874,-168.0,0.00017702,2]
[379225027,1755197445884,-277.581295,0.00017705,2]
[379225028,1755197445893,-151.0,0.00017705,2]
[379225029,1755197445902,-189.0,0.0001773,2]
[379225030,1755197445911,-168.0,0.0001776,2]
[379225031,1755197445920,-1500.0,0.00017768,2]
[379225032,1755197445930,-1500.0,0.00017768,2]
[379225033,1755197445939,-1500.0,0.00017768,2]
[379225034,1755197445948,-1500.0,0.00017768,2]
[379225035,1755197445958,-1500.0,0.00017768,2]
[379225036,1755197445967,-1500.0,0.00017768,2]
[379225037,1755197445976,-1500.0,0.00017768,2]
[379225038,1755197445985,-1500.0,0.00017768,2]
[379225039,1755197445994,-291.14186915,0.00017768,2]
[379225040,1755197446003,-1500.0,0.00017768,2]
[379225041,1755197446013,-3018.529818,0.0001777,2]
[379225042,1755197446023,-151.0,0.00017798,2]
[379225043,1755197446033,-151.0,0.000178,2]
[379225044,1755197446044,-1378.0,0.00017802,2]
[379225045,1755197446054,-151.0,0.00017803,2]
[379225046,1755197446067,-168.0,0.00017807,2]
[379225047,1755197446076,-151.0,0.00017807,2]
[379225048,1755197446085,-179.3342,0.00017807,2]
[379225051,1755197446095,-460.0,0.00017808,2]
[379225054,1755197446104,-547.1,0.00017815,2]
[379225055,1755197446113,-460.0,0.00017868,2]
[379225058,1755197446123,-460.0,0.00017868,2]
[379225059,1755197446133,-460.0,0.00017868,2]
[379225060,1755197446142,-460.0,0.00017868,2]
[379225061,1755197446151,-460.0,0.00017868,2]
[379225062,1755197446162,-932.62,0.00017868,2]
[379225063,1755197446171,-758.98,0.00017868,2]
[379225064,1755197446180,-168.0,0.00017874,2]
[379225065,1755197446189,-460.0,0.00017876,2]
[379225066,1755197446199,-789.03,0.00017876,2]
[379225067,1755197446208,-1278.43,0.00017876,2]
[379225068,1755197446217,-460.0,0.00017876,2]
[379225069,1755197446226,-1049.16,0.00017876,2]
[379225070,1755197446236,-526.84,0.00017876,2]
[379225071,1755197446246,-460.0,0.00017876,2]
[379225073,1755197446255,-1125.17,0.00017876,2]
[379225074,1755197446264,-467.52,0.00017876,2]
[379225076,1755197446273,-617.46,0.00017876,2]
[379225078,1755197446283,-460.0,0.00017876,2]
[379225080,1755197446292,-1084.56,0.00017876,2]
[379225082,1755197446301,-164.933933,0.00017877,2]
[379225083,1755197446310,-164.933933,0.00017877,2]
[379225085,1755197446320,-1448.41,0.00017877,2]